[Event "Early-Titled-Tuesday-Blitz-February-20-2024"]
[Site "Chess.com"]
[Date "2024.02.20"]
[Round "10"]
[White "chessdjw"]
[Black "wonderfultime"]
[Result "0-1"]
[WhiteElo "2750"]
[BlackElo "3047"]
[TimeControl "180+1"]
[EndTime "9:57:14 PST"]
[Termination "wonderfultime won on time"]

1. d4 {[%clk 0:03:00.7]} 1... d5 {[%clk 0:02:57.8]} 2. c4 {[%clk 0:03:01]} 2...
e6 {[%clk 0:02:58.3]} 3. Nc3 {[%clk 0:03:00.3]} 3... Bb4 {[%clk 0:02:58.3]} 4.
a3 {[%clk 0:02:58.9]} 4... Bxc3+ {[%clk 0:02:57.9]} 5. bxc3 {[%clk 0:02:59.8]}
5... c6 {[%clk 0:02:57.6]} 6. e3 {[%clk 0:02:54.3]} 6... Nf6 {[%clk 0:02:57.8]}
7. f3 {[%clk 0:02:45.8]} 7... b6 {[%clk 0:02:57]} 8. Bd3 {[%clk 0:02:44.7]} 8...
Ba6 {[%clk 0:02:55.7]} 9. cxd5 {[%clk 0:02:44.8]} 9... Bxd3 {[%clk 0:02:54.5]}
10. Qxd3 {[%clk 0:02:44.3]} 10... cxd5 {[%clk 0:02:54.6]} 11. Ne2 {[%clk
0:02:39.4]} 11... Qc8 {[%clk 0:02:52.8]} 12. e4 {[%clk 0:02:28.7]} 12... O-O
{[%clk 0:02:48.9]} 13. Bg5 {[%clk 0:02:22.9]} 13... Nfd7 {[%clk 0:02:42.5]} 14.
O-O {[%clk 0:02:17.1]} 14... Qa6 {[%clk 0:02:26.2]} 15. Qe3 {[%clk 0:02:04.8]}
15... Qc4 {[%clk 0:02:22.3]} 16. e5 {[%clk 0:01:48]} 16... Nc6 {[%clk
0:02:08.9]} 17. Ng3 {[%clk 0:01:43.6]} 17... Rae8 {[%clk 0:02:06.5]} 18. Nh5
{[%clk 0:01:42.3]} 18... Kh8 {[%clk 0:01:40.7]} 19. Rae1 {[%clk 0:01:01.8]}
19... f6 {[%clk 0:01:29.5]} 20. exf6 {[%clk 0:00:34.8]} 20... gxf6 {[%clk
0:01:30.4]} 21. Bh6 {[%clk 0:00:31.9]} 21... Rg8 {[%clk 0:01:29.6]} 22. f4
{[%clk 0:00:20.4]} 22... Nd8 {[%clk 0:01:12.8]} 23. f5 {[%clk 0:00:12.7]} 23...
e5 {[%clk 0:01:13.1]} 24. Qh3 {[%clk 0:00:06.6]} 24... Nf7 {[%clk 0:01:10.9]}
25. Bd2 {[%clk 0:00:05.1]} 25... exd4 {[%clk 0:00:58]} 0-1

[Event "Early-Titled-Tuesday-Blitz-February-20-2024"]
[Site "Chess.com"]
[Date "2024.02.20"]
[Round "10"]
[White "maciek_92"]
[Black "hansen"]
[Result "1-0"]
[WhiteElo "2838"]
[BlackElo "2904"]
[TimeControl "180+1"]
[EndTime "9:57:18 PST"]
[Termination "maciek_92 won by checkmate"]

1. c4 {[%clk 0:03:00.9]} 1... e5 {[%clk 0:02:58.4]} 2. g3 {[%clk 0:03:01.6]}
2... Nf6 {[%clk 0:02:49.6]} 3. Bg2 {[%clk 0:03:01.4]} 3... d5 {[%clk 0:02:49.6]}
4. cxd5 {[%clk 0:03:01.3]} 4... Nxd5 {[%clk 0:02:50.5]} 5. Nc3 {[%clk
0:03:01.9]} 5... Nb6 {[%clk 0:02:50.3]} 6. e3 {[%clk 0:03:02.4]} 6... Bd6 {[%clk
0:02:43.1]} 7. Nge2 {[%clk 0:03:00.1]} 7... O-O {[%clk 0:02:43.6]} 8. O-O {[%clk
0:03:00.8]} 8... Nc6 {[%clk 0:02:39.2]} 9. d4 {[%clk 0:02:59.9]} 9... f5 {[%clk
0:02:31.1]} 10. a4 {[%clk 0:02:53.3]} 10... a5 {[%clk 0:02:20.6]} 11. dxe5
{[%clk 0:02:47.3]} 11... Nxe5 {[%clk 0:02:07.7]} 12. Nf4 {[%clk 0:02:47.3]}
12... c6 {[%clk 0:01:56.6]} 13. Qb3+ {[%clk 0:02:42.6]} 13... Kh8 {[%clk
0:01:56.8]} 14. Rd1 {[%clk 0:02:43.2]} 14... Nf7 {[%clk 0:01:35.4]} 15. e4
{[%clk 0:02:42.2]} 15... Qc7 {[%clk 0:01:28.9]} 16. Be3 {[%clk 0:02:41.8]} 16...
Bb4 {[%clk 0:01:19.1]} 17. Rac1 {[%clk 0:02:34.6]} 17... Ne5 {[%clk 0:00:46.8]}
18. Nb5 {[%clk 0:02:31.6]} 18... Qe7 {[%clk 0:00:46.6]} 19. Bxb6 {[%clk
0:02:30.1]} 19... cxb5 {[%clk 0:00:47]} 20. Nd5 {[%clk 0:02:27.5]} 20... Qf7
{[%clk 0:00:45.3]} 21. Rc7 {[%clk 0:02:22.5]} 21... Qg8 {[%clk 0:00:42.9]} 22.
axb5 {[%clk 0:01:39.1]} 22... fxe4 {[%clk 0:00:42.4]} 23. Bxe4 {[%clk
0:01:29.1]} 23... Bg4 {[%clk 0:00:37.9]} 24. Rdc1 {[%clk 0:01:18.5]} 24... Rae8
{[%clk 0:00:13.4]} 25. f4 {[%clk 0:01:03.7]} 25... Nd7 {[%clk 0:00:11.9]} 26.
Qd3 {[%clk 0:01:00.5]} 26... Nxb6 {[%clk 0:00:07.2]} 27. Nxb6 {[%clk 0:01:01.4]}
27... Rd8 {[%clk 0:00:06.7]} 28. Bd5 {[%clk 0:01:00.9]} 28... h6 {[%clk
0:00:02]} 29. Qg6 {[%clk 0:00:52.3]} 29... Rxd5 {[%clk 0:00:01.7]} 30. Nxd5
{[%clk 0:00:53.2]} 30... Qxd5 {[%clk 0:00:01.9]} 31. Qxg7# {[%clk 0:00:53.1]}
1-0

[Event "Early-Titled-Tuesday-Blitz-February-20-2024"]
[Site "Chess.com"]
[Date "2024.02.20"]
[Round "10"]
[White "Kildepiotr"]
[Black "wanyaland"]
[Result "1-0"]
[WhiteElo "2682"]
[BlackElo "2503"]
[TimeControl "180+1"]
[EndTime "9:57:18 PST"]
[Termination "Kildepiotr won by resignation"]

1. Nf3 {[%clk 0:02:57.8]} 1... d5 {[%clk 0:02:59.2]} 2. g3 {[%clk 0:02:58.3]}
2... c5 {[%clk 0:02:51.4]} 3. Bg2 {[%clk 0:02:58.6]} 3... Nc6 {[%clk 0:02:51.7]}
4. O-O {[%clk 0:02:59.5]} 4... f6 {[%clk 0:02:51.5]} 5. d4 {[%clk 0:02:58.8]}
5... cxd4 {[%clk 0:02:51.7]} 6. Nxd4 {[%clk 0:02:59.5]} 6... e5 {[%clk
0:02:51.9]} 7. Nxc6 {[%clk 0:02:59.8]} 7... bxc6 {[%clk 0:02:52.8]} 8. c4 {[%clk
0:03:00.4]} 8... Be6 {[%clk 0:02:47.5]} 9. Nc3 {[%clk 0:02:59.6]} 9... e4 {[%clk
0:02:44.3]} 10. Qa4 {[%clk 0:02:55.9]} 10... Qd7 {[%clk 0:02:38.1]} 11. Rd1
{[%clk 0:02:54.9]} 11... f5 {[%clk 0:02:26.6]} 12. cxd5 {[%clk 0:02:53.3]} 12...
cxd5 {[%clk 0:02:24.9]} 13. Qxd7+ {[%clk 0:02:52.9]} 13... Kxd7 {[%clk 0:02:24]}
14. Nxd5 {[%clk 0:02:52.8]} 14... Bxd5 {[%clk 0:02:24.5]} 15. Rxd5+ {[%clk
0:02:53.7]} 15... Ke6 {[%clk 0:02:24.7]} 16. Ra5 {[%clk 0:02:44.6]} 16... Bd6
{[%clk 0:02:18.6]} 17. Be3 {[%clk 0:02:38.6]} 17... a6 {[%clk 0:02:14.1]} 18.
Rd1 {[%clk 0:02:28.1]} 18... Nf6 {[%clk 0:02:13.6]} 19. f3 {[%clk 0:02:14.5]}
19... Rhb8 {[%clk 0:02:09.1]} 20. Rxd6+ {[%clk 0:02:08.6]} 20... Kxd6 {[%clk
0:02:07.1]} 21. Bf4+ {[%clk 0:02:09]} 21... Ke7 {[%clk 0:02:07.5]} 22. Bxb8
{[%clk 0:02:08.2]} 22... Rxb8 {[%clk 0:02:07.9]} 23. b3 {[%clk 0:02:06.5]} 23...
Rb6 {[%clk 0:02:03.8]} 24. Rxf5 {[%clk 0:02:05.5]} 24... exf3 {[%clk 0:01:51.9]}
25. Bxf3 {[%clk 0:02:05.5]} 25... Rd6 {[%clk 0:01:45.1]} 26. Ra5 {[%clk
0:02:03.9]} 26... Nd7 {[%clk 0:01:45.1]} 27. Bb7 {[%clk 0:01:59.6]} 27... Nb8
{[%clk 0:01:44.7]} 28. Kf2 {[%clk 0:01:58.4]} 28... Kd8 {[%clk 0:01:44.8]} 29.
Be4 {[%clk 0:01:56.9]} 29... h6 {[%clk 0:01:43.6]} 30. Rd5 {[%clk 0:01:56.3]}
30... Kc7 {[%clk 0:01:42.7]} 31. Rxd6 {[%clk 0:01:56]} 31... Kxd6 {[%clk
0:01:43.6]} 32. b4 {[%clk 0:01:52.2]} 32... Ke5 {[%clk 0:01:39.7]} 33. Ke3
{[%clk 0:01:50.5]} 33... Nd7 {[%clk 0:01:35.6]} 34. Bb7 {[%clk 0:01:50.4]} 34...
Nb6 {[%clk 0:01:33.9]} 35. Kd3 {[%clk 0:01:47.3]} 35... a5 {[%clk 0:01:27.6]}
36. bxa5 {[%clk 0:01:46.3]} 36... Na4 {[%clk 0:01:27.9]} 37. Kc4 {[%clk
0:01:44.1]} 37... Kd6 {[%clk 0:01:26.1]} 38. Be4 {[%clk 0:01:28.9]} 38... Nc5
{[%clk 0:01:23.3]} 39. Bf3 {[%clk 0:01:24.7]} 39... Nd7 {[%clk 0:01:16.2]} 40.
Kb5 {[%clk 0:01:22.8]} 40... Kc7 {[%clk 0:01:14.3]} 41. a6 {[%clk 0:01:20.4]}
41... Kb8 {[%clk 0:01:14.4]} 42. Kc6 {[%clk 0:01:15]} 42... Ne5+ {[%clk
0:01:13.4]} 43. Kd6 {[%clk 0:01:13.7]} 43... Nc4+ {[%clk 0:01:11]} 44. Ke6
{[%clk 0:01:13.7]} 44... Ka7 {[%clk 0:01:09.2]} 45. Kf7 {[%clk 0:01:14.1]} 45...
g5 {[%clk 0:01:08.3]} 46. Kg6 {[%clk 0:01:14.4]} 46... g4 {[%clk 0:01:08.2]} 47.
Bxg4 {[%clk 0:01:13.5]} 47... Kxa6 {[%clk 0:01:05.9]} 48. Kxh6 {[%clk
0:01:13.9]} 48... Kb6 {[%clk 0:01:06.1]} 49. Kg7 {[%clk 0:01:13.8]} 49... Kc5
{[%clk 0:01:06.5]} 50. h4 {[%clk 0:01:13.9]} 50... Ne5 {[%clk 0:01:05.3]} 51.
Bf5 {[%clk 0:01:13.2]} 51... Kd6 {[%clk 0:00:56.6]} 52. h5 {[%clk 0:01:13.3]}
52... Nc6 {[%clk 0:00:54.3]} 53. h6 {[%clk 0:01:12.6]} 53... Ne7 {[%clk
0:00:54.6]} 54. Bd3 {[%clk 0:01:09.4]} 1-0

[Event "Early-Titled-Tuesday-Blitz-February-20-2024"]
[Site "Chess.com"]
[Date "2024.02.20"]
[Round "10"]
[White "BashirliSaadat"]
[Black "yuriydovzik"]
[Result "1-0"]
[WhiteElo "2353"]
[BlackElo "2151"]
[TimeControl "180+1"]
[EndTime "9:57:18 PST"]
[Termination "BashirliSaadat won on time"]

1. d4 {[%clk 0:03:00.9]} 1... Nf6 {[%clk 0:02:56.9]} 2. e3 {[%clk 0:03:00.9]}
2... c5 {[%clk 0:02:54.4]} 3. c3 {[%clk 0:03:00.5]} 3... e6 {[%clk 0:02:46.1]}
4. Bd3 {[%clk 0:03:00.9]} 4... b6 {[%clk 0:02:43.4]} 5. f4 {[%clk 0:03:01.1]}
5... Bb7 {[%clk 0:02:41.1]} 6. Nf3 {[%clk 0:03:01.4]} 6... d6 {[%clk 0:02:36.2]}
7. O-O {[%clk 0:03:01.8]} 7... Nbd7 {[%clk 0:02:35.9]} 8. Nbd2 {[%clk
0:03:01.7]} 8... Be7 {[%clk 0:02:34.5]} 9. b3 {[%clk 0:03:02.2]} 9... O-O {[%clk
0:02:32.5]} 10. Bb2 {[%clk 0:03:02.8]} 10... Rc8 {[%clk 0:02:29.1]} 11. Qe2
{[%clk 0:03:03]} 11... d5 {[%clk 0:02:14.6]} 12. Rac1 {[%clk 0:03:02.6]} 12...
Qc7 {[%clk 0:02:05.9]} 13. Ne5 {[%clk 0:03:00.6]} 13... Nxe5 {[%clk 0:01:57.4]}
14. fxe5 {[%clk 0:03:01.5]} 14... Nd7 {[%clk 0:01:46.5]} 15. Rf3 {[%clk
0:02:50.4]} 15... g6 {[%clk 0:01:39.3]} 16. Rcf1 {[%clk 0:02:46.4]} 16... f5
{[%clk 0:01:28.5]} 17. Rh3 {[%clk 0:02:39.5]} 17... Rf7 {[%clk 0:01:18.7]} 18.
Nf3 {[%clk 0:02:34.4]} 18... Rcf8 {[%clk 0:00:58.5]} 19. Kh1 {[%clk 0:02:12.5]}
19... f4 {[%clk 0:00:54.1]} 20. exf4 {[%clk 0:02:07.7]} 20... Rxf4 {[%clk
0:00:53.7]} 21. Bc1 {[%clk 0:02:08]} 21... Re4 {[%clk 0:00:45.1]} 22. Bxe4
{[%clk 0:02:04.6]} 22... dxe4 {[%clk 0:00:44.6]} 23. Ng5 {[%clk 0:02:02.1]}
23... cxd4 {[%clk 0:00:37.4]} 24. Nxe6 {[%clk 0:01:37.5]} 24... Rxf1+ {[%clk
0:00:16.8]} 25. Qxf1 {[%clk 0:01:38.4]} 25... Qc6 {[%clk 0:00:15.1]} 26. Nxd4
{[%clk 0:01:35.1]} 26... Qd5 {[%clk 0:00:14]} 27. e6 {[%clk 0:01:07.5]} 27...
Ne5 {[%clk 0:00:04.8]} 28. Bf4 {[%clk 0:01:01.1]} 28... e3 {[%clk 0:00:02.4]}
29. Bxe5 {[%clk 0:00:55.6]} 1-0

[Event "Early-Titled-Tuesday-Blitz-February-20-2024"]
[Site "Chess.com"]
[Date "2024.02.20"]
[Round "10"]
[White "Byniolus"]
[Black "Bauman_Guy"]
[Result "0-1"]
[WhiteElo "2827"]
[BlackElo "2923"]
[TimeControl "180+1"]
[EndTime "9:57:20 PST"]
[Termination "Bauman_Guy won by resignation"]

1. d4 {[%clk 0:03:00.9]} 1... Nf6 {[%clk 0:02:59.8]} 2. Nf3 {[%clk 0:03:01.2]}
2... b6 {[%clk 0:02:59.3]} 3. Bf4 {[%clk 0:03:01.3]} 3... Bb7 {[%clk 0:02:58.7]}
4. h3 {[%clk 0:03:01.7]} 4... g6 {[%clk 0:02:58.9]} 5. e3 {[%clk 0:03:02.1]}
5... Bg7 {[%clk 0:02:58.8]} 6. Be2 {[%clk 0:03:02.5]} 6... O-O {[%clk
0:02:58.8]} 7. O-O {[%clk 0:03:02.8]} 7... d6 {[%clk 0:02:59.2]} 8. a4 {[%clk
0:03:02.3]} 8... a6 {[%clk 0:02:59.2]} 9. c3 {[%clk 0:03:01.6]} 9... Nc6 {[%clk
0:02:57.9]} 10. Bh2 {[%clk 0:02:57.8]} 10... Nd7 {[%clk 0:02:57.9]} 11. Nbd2
{[%clk 0:02:55.3]} 11... e5 {[%clk 0:02:57.7]} 12. Nc4 {[%clk 0:02:49.5]} 12...
Qe7 {[%clk 0:02:56.9]} 13. Re1 {[%clk 0:02:44]} 13... Kh8 {[%clk 0:02:56.5]} 14.
Qb3 {[%clk 0:02:39.5]} 14... f5 {[%clk 0:02:54.9]} 15. dxe5 {[%clk 0:02:14.9]}
15... Ncxe5 {[%clk 0:02:51.4]} 16. Ncxe5 {[%clk 0:02:14.9]} 16... dxe5 {[%clk
0:02:47.3]} 17. a5 {[%clk 0:02:05.4]} 17... b5 {[%clk 0:02:42.7]} 18. c4 {[%clk
0:02:05.7]} 18... b4 {[%clk 0:02:42]} 19. Red1 {[%clk 0:01:59]} 19... Rab8
{[%clk 0:02:36]} 20. Rxd7 {[%clk 0:01:36.8]} 20... Qxd7 {[%clk 0:02:32.9]} 21.
Bxe5 {[%clk 0:01:37.7]} 21... Bxf3 {[%clk 0:02:22]} 22. Bxg7+ {[%clk 0:01:36.7]}
22... Qxg7 {[%clk 0:02:22.6]} 23. Bxf3 {[%clk 0:01:35.4]} 23... Rfd8 {[%clk
0:02:23.5]} 24. c5 {[%clk 0:01:17.5]} 24... Qe5 {[%clk 0:02:12]} 25. Rc1 {[%clk
0:01:03.4]} 25... Rd2 {[%clk 0:02:02.5]} 26. Rc2 {[%clk 0:00:49.8]} 26... Rxc2
{[%clk 0:01:41.5]} 27. Qxc2 {[%clk 0:00:50.7]} 27... b3 {[%clk 0:01:42.4]} 28.
Qc1 {[%clk 0:00:39.7]} 28... Rb5 {[%clk 0:01:33.6]} 29. c6 {[%clk 0:00:35.5]}
29... Kg7 {[%clk 0:01:22.1]} 30. g4 {[%clk 0:00:33.3]} 30... Rc5 {[%clk
0:01:02.1]} 31. Qd2 {[%clk 0:00:31.7]} 31... Qd6 {[%clk 0:01:02.1]} 32. Qe2
{[%clk 0:00:14.1]} 32... Rc2 {[%clk 0:01:02.2]} 33. Qxa6 {[%clk 0:00:09.1]}
33... Qd2 {[%clk 0:01:02.3]} 34. Qf1 {[%clk 0:00:06.6]} 34... Rc1 {[%clk
0:01:02.2]} 0-1

[Event "Early-Titled-Tuesday-Blitz-February-20-2024"]
[Site "Chess.com"]
[Date "2024.02.20"]
[Round "10"]
[White "IndianSchoolOfSuffering"]
[Black "ExtremeLearner"]
[Result "0-1"]
[WhiteElo "2439"]
[BlackElo "2585"]
[TimeControl "180+1"]
[EndTime "9:57:20 PST"]
[Termination "ExtremeLearner won by resignation"]

1. d4 {[%clk 0:02:57.5]} 1... Nf6 {[%clk 0:02:59.3]} 2. c4 {[%clk 0:02:56.9]}
2... c5 {[%clk 0:02:57.1]} 3. d5 {[%clk 0:02:55.9]} 3... b5 {[%clk 0:02:57.6]}
4. Nf3 {[%clk 0:02:54.4]} 4... b4 {[%clk 0:02:57.2]} 5. b3 {[%clk 0:02:53.2]}
5... g6 {[%clk 0:02:54.6]} 6. Bb2 {[%clk 0:02:52.7]} 6... Bg7 {[%clk 0:02:55.1]}
7. a4 {[%clk 0:02:52.6]} 7... O-O {[%clk 0:02:52.5]} 8. Nbd2 {[%clk 0:02:51]}
8... d6 {[%clk 0:02:51.9]} 9. h3 {[%clk 0:02:50.4]} 9... a5 {[%clk 0:02:48.4]}
10. e4 {[%clk 0:02:49.7]} 10... e5 {[%clk 0:02:48.2]} 11. Bd3 {[%clk 0:02:43.5]}
11... Nh5 {[%clk 0:02:47]} 12. Qc2 {[%clk 0:02:35.6]} 12... Nf4 {[%clk
0:02:23.8]} 13. Bf1 {[%clk 0:02:33.1]} 13... f5 {[%clk 0:02:20.6]} 14. O-O-O
{[%clk 0:02:29.3]} 14... Nd7 {[%clk 0:02:12.3]} 15. g3 {[%clk 0:02:27.1]} 15...
Nh5 {[%clk 0:02:10.5]} 16. Be2 {[%clk 0:02:20.2]} 16... Nb6 {[%clk 0:01:53.3]}
17. Rdf1 {[%clk 0:02:13.4]} 17... f4 {[%clk 0:01:48.6]} 18. g4 {[%clk
0:02:12.2]} 18... Nf6 {[%clk 0:01:48.5]} 19. Ng5 {[%clk 0:02:07.8]} 19... h6
{[%clk 0:01:36.4]} 20. Ne6 {[%clk 0:02:06.5]} 20... Bxe6 {[%clk 0:01:36.7]} 21.
dxe6 {[%clk 0:02:07.4]} 21... Qe7 {[%clk 0:01:35.6]} 22. Nf3 {[%clk 0:02:05.1]}
22... Ne8 {[%clk 0:01:26.2]} 23. Rd1 {[%clk 0:02:03.6]} 23... Nc7 {[%clk
0:01:26]} 24. Rd2 {[%clk 0:02:00.2]} 24... Nxe6 {[%clk 0:01:25.9]} 25. Rhd1
{[%clk 0:01:55.8]} 25... Nd4 {[%clk 0:01:26.1]} 26. Nxd4 {[%clk 0:01:54.6]}
26... cxd4 {[%clk 0:01:22.8]} 27. Kb1 {[%clk 0:01:52.2]} 27... Nd7 {[%clk
0:01:20.7]} 28. f3 {[%clk 0:01:51.1]} 28... Nc5 {[%clk 0:01:20.3]} 29. Bd3
{[%clk 0:01:50.9]} 29... Rfb8 {[%clk 0:01:13.1]} 30. Rh2 {[%clk 0:01:49.7]}
30... Bf6 {[%clk 0:01:13.1]} 31. h4 {[%clk 0:01:47.1]} 31... Bxh4 {[%clk
0:01:06.1]} 32. Rdh1 {[%clk 0:01:47.3]} 32... Bg5 {[%clk 0:00:54.1]} 33. Qd1
{[%clk 0:01:46.8]} 33... Kg7 {[%clk 0:00:53.3]} 34. Kc2 {[%clk 0:01:46.5]} 34...
Rh8 {[%clk 0:00:49.7]} 35. Qe2 {[%clk 0:01:46.2]} 35... Rh7 {[%clk 0:00:45]} 36.
Qf2 {[%clk 0:01:45.7]} 36... Rah8 {[%clk 0:00:43.4]} 37. Qg2 {[%clk 0:01:45.1]}
37... Qf6 {[%clk 0:00:42.7]} 38. Bc1 {[%clk 0:01:44.1]} 38... Kf8 {[%clk
0:00:42.1]} 39. Bd2 {[%clk 0:01:43.9]} 39... Ke7 {[%clk 0:00:42.7]} 40. Be1
{[%clk 0:01:44]} 40... Kd7 {[%clk 0:00:40.9]} 41. Bh4 {[%clk 0:01:43.6]} 41...
Bxh4 {[%clk 0:00:39.1]} 42. Rxh4 {[%clk 0:01:44.5]} 42... Qg5 {[%clk 0:00:39.6]}
43. R4h2 {[%clk 0:01:44.3]} 43... Kc6 {[%clk 0:00:37.5]} 44. Be2 {[%clk
0:01:41.9]} 44... h5 {[%clk 0:00:30.5]} 45. gxh5 {[%clk 0:01:40.7]} 45... Qxg2
{[%clk 0:00:29.9]} 46. Rxg2 {[%clk 0:01:40.7]} 46... Rxh5 {[%clk 0:00:28.6]} 47.
Rxh5 {[%clk 0:01:39.9]} 47... Rxh5 {[%clk 0:00:29.5]} 48. Bd3 {[%clk 0:01:35.2]}
48... Rh3 {[%clk 0:00:27.3]} 49. Be2 {[%clk 0:01:35.2]} 49... d3+ {[%clk
0:00:26.1]} 50. Bxd3 {[%clk 0:01:34.9]} 50... Rxf3 {[%clk 0:00:25]} 0-1

[Event "Early-Titled-Tuesday-Blitz-February-20-2024"]
[Site "Chess.com"]
[Date "2024.02.20"]
[Round "10"]
[White "ChainedDowntohell"]
[Black "Carlitus2004"]
[Result "0-1"]
[WhiteElo "2545"]
[BlackElo "2405"]
[TimeControl "180+1"]
[EndTime "9:57:21 PST"]
[Termination "Carlitus2004 won by resignation"]

1. d4 {[%clk 0:03:00]} 1... d5 {[%clk 0:02:43.2]} 2. c4 {[%clk 0:02:58.3]} 2...
e6 {[%clk 0:02:40.3]} 3. Nf3 {[%clk 0:02:54.8]} 3... Be7 {[%clk 0:02:32.9]} 4.
Nc3 {[%clk 0:02:48.9]} 4... h6 {[%clk 0:02:30.5]} 5. e3 {[%clk 0:02:43.6]} 5...
Nf6 {[%clk 0:02:29.9]} 6. Qc2 {[%clk 0:02:37.5]} 6... O-O {[%clk 0:02:29]} 7. g4
{[%clk 0:02:37.1]} 7... c5 {[%clk 0:02:26.8]} 8. dxc5 {[%clk 0:02:35.5]} 8...
dxc4 {[%clk 0:02:19.2]} 9. g5 {[%clk 0:02:30.2]} 9... hxg5 {[%clk 0:02:19.1]}
10. Nxg5 {[%clk 0:02:28.8]} 10... Qa5 {[%clk 0:02:11.8]} 11. Bxc4 {[%clk
0:01:38]} 11... Qxc5 {[%clk 0:01:43.7]} 12. Nce4 {[%clk 0:01:37.8]} 12... Nxe4
{[%clk 0:01:43.1]} 13. Nxe4 {[%clk 0:01:38.7]} 13... Qf5 {[%clk 0:01:43.3]} 14.
Bd2 {[%clk 0:01:32]} 14... Bd7 {[%clk 0:01:38.5]} 15. Bd3 {[%clk 0:01:27]} 15...
Nc6 {[%clk 0:01:39]} 16. Bc3 {[%clk 0:01:21.8]} 16... Nb4 {[%clk 0:01:24.8]} 17.
Bxb4 {[%clk 0:01:08.4]} 17... Bxb4+ {[%clk 0:01:25.7]} 18. Ke2 {[%clk
0:01:08.8]} 18... Bc6 {[%clk 0:01:08.6]} 19. Rag1 {[%clk 0:00:59.8]} 19... Rfd8
{[%clk 0:01:07.4]} 20. Rg5 {[%clk 0:00:52.9]} 20... Bxe4 {[%clk 0:00:54.5]} 21.
Rxf5 {[%clk 0:00:46.9]} 21... Bxd3+ {[%clk 0:00:54.6]} 22. Qxd3 {[%clk
0:00:47.4]} 22... Rxd3 {[%clk 0:00:55.1]} 23. Rb5 {[%clk 0:00:47.9]} 23... Rd2+
{[%clk 0:00:55.5]} 24. Kf3 {[%clk 0:00:46.6]} 24... Rxb2 {[%clk 0:00:49]} 25.
Rxb7 {[%clk 0:00:46.3]} 25... Bc3 {[%clk 0:00:45.1]} 26. Rc7 {[%clk 0:00:46.3]}
26... Be5 {[%clk 0:00:44.8]} 27. Rc5 {[%clk 0:00:44.9]} 27... Bd6 {[%clk
0:00:43.2]} 28. Rc6 {[%clk 0:00:44.3]} 28... Be5 {[%clk 0:00:41.7]} 29. a4
{[%clk 0:00:44.4]} 29... Rb4 {[%clk 0:00:40.8]} 30. a5 {[%clk 0:00:43.2]} 30...
Rb5 {[%clk 0:00:41]} 31. a6 {[%clk 0:00:42.6]} 31... Rb6 {[%clk 0:00:41.4]} 32.
Rc5 {[%clk 0:00:40.9]} 32... Bd6 {[%clk 0:00:39.5]} 33. Ra5 {[%clk 0:00:40.9]}
33... Rc8 {[%clk 0:00:39.6]} 34. Rd1 {[%clk 0:00:40.1]} 34... Rcc6 {[%clk
0:00:39.6]} 35. Rda1 {[%clk 0:00:36.2]} 35... Bxh2 {[%clk 0:00:39.8]} 36. Ke4
{[%clk 0:00:31.4]} 36... Bc7 {[%clk 0:00:39.9]} 37. f4 {[%clk 0:00:31]} 37...
Rb4+ {[%clk 0:00:39.8]} 0-1

[Event "Early-Titled-Tuesday-Blitz-February-20-2024"]
[Site "Chess.com"]
[Date "2024.02.20"]
[Round "10"]
[White "TioCridineno"]
[Black "Alenzer"]
[Result "1-0"]
[WhiteElo "2396"]
[BlackElo "2165"]
[TimeControl "180+1"]
[EndTime "9:57:22 PST"]
[Termination "TioCridineno won by checkmate"]

1. e4 {[%clk 0:03:00.9]} 1... c5 {[%clk 0:02:56.1]} 2. Nf3 {[%clk 0:03:00.8]}
2... e6 {[%clk 0:02:55.6]} 3. c3 {[%clk 0:02:57.4]} 3... d5 {[%clk 0:02:54.7]}
4. exd5 {[%clk 0:02:57.8]} 4... exd5 {[%clk 0:02:54.7]} 5. d4 {[%clk 0:02:58.2]}
5... Nf6 {[%clk 0:02:54.6]} 6. Bb5+ {[%clk 0:02:57.3]} 6... Nc6 {[%clk
0:02:54.1]} 7. O-O {[%clk 0:02:56.2]} 7... Bd6 {[%clk 0:02:53.8]} 8. dxc5 {[%clk
0:02:56.5]} 8... Bxc5 {[%clk 0:02:53.3]} 9. Nbd2 {[%clk 0:02:57]} 9... O-O
{[%clk 0:02:52.1]} 10. Nb3 {[%clk 0:02:56.8]} 10... Bb6 {[%clk 0:02:47.3]} 11.
h3 {[%clk 0:02:57.4]} 11... Ne4 {[%clk 0:02:03.3]} 12. Nbd4 {[%clk 0:02:53.6]}
12... Qf6 {[%clk 0:01:48.9]} 13. Be3 {[%clk 0:02:50.7]} 13... Bc7 {[%clk
0:01:37.7]} 14. Bd3 {[%clk 0:02:44.5]} 14... Re8 {[%clk 0:01:24.6]} 15. Re1
{[%clk 0:02:43.8]} 15... Bd7 {[%clk 0:01:23]} 16. Nxc6 {[%clk 0:02:35.2]} 16...
bxc6 {[%clk 0:01:06.5]} 17. Rc1 {[%clk 0:02:33.5]} 17... Bf5 {[%clk 0:00:50.3]}
18. Kh1 {[%clk 0:02:27.4]} 18... Bg6 {[%clk 0:00:44.9]} 19. Bd4 {[%clk
0:02:26.5]} 19... Qd6 {[%clk 0:00:42.9]} 20. b4 {[%clk 0:02:20.1]} 20... Bh5
{[%clk 0:00:30.6]} 21. g4 {[%clk 0:02:16.8]} 21... Ng5 {[%clk 0:00:19.7]} 22.
Kg2 {[%clk 0:02:11.5]} 22... Nxf3 {[%clk 0:00:17.2]} 23. Qxf3 {[%clk 0:02:11]}
23... Qh2+ {[%clk 0:00:16.5]} 24. Kf1 {[%clk 0:02:11]} 24... Bg6 {[%clk
0:00:16.4]} 25. Bf5 {[%clk 0:02:02.3]} 25... Qf4 {[%clk 0:00:13.8]} 26. Qxf4
{[%clk 0:02:00.6]} 26... Bxf4 {[%clk 0:00:14.1]} 27. Rcd1 {[%clk 0:01:55.9]}
27... Bxf5 {[%clk 0:00:14.3]} 28. gxf5 {[%clk 0:01:55.8]} 28... Re4 {[%clk
0:00:13.2]} 29. Rxe4 {[%clk 0:01:52.1]} 29... dxe4 {[%clk 0:00:13.1]} 30. Bc5
{[%clk 0:01:50.8]} 30... f6 {[%clk 0:00:08.3]} 31. Rd7 {[%clk 0:01:49.6]} 31...
a5 {[%clk 0:00:07.1]} 32. a3 {[%clk 0:01:46.9]} 32... g6 {[%clk 0:00:07.3]} 33.
fxg6 {[%clk 0:01:29]} 33... hxg6 {[%clk 0:00:08.2]} 34. bxa5 {[%clk 0:01:29.4]}
34... Rxa5 {[%clk 0:00:08.1]} 35. Bb4 {[%clk 0:01:30.1]} 35... Ra8 {[%clk
0:00:07.3]} 36. Ke2 {[%clk 0:01:28.4]} 36... g5 {[%clk 0:00:07]} 37. f3 {[%clk
0:01:27.2]} 37... exf3+ {[%clk 0:00:06.2]} 38. Kxf3 {[%clk 0:01:27.5]} 38... Re8
{[%clk 0:00:06.8]} 39. Kg4 {[%clk 0:01:26.3]} 39... Re3 {[%clk 0:00:06.5]} 40.
a4 {[%clk 0:01:25.3]} 40... Rg3+ {[%clk 0:00:06.6]} 41. Kf5 {[%clk 0:01:25.8]}
41... Rxh3 {[%clk 0:00:06.3]} 42. Kg6 {[%clk 0:01:26.2]} 42... Rh6+ {[%clk
0:00:01.7]} 43. Kxh6 {[%clk 0:01:26.2]} 43... g4+ {[%clk 0:00:02.6]} 44. Kg6
{[%clk 0:01:23.6]} 44... g3 {[%clk 0:00:03.2]} 45. Rd8# {[%clk 0:01:23.7]} 1-0